bitfinex-derivatives/quotes_BTCF0:USTF0_20241013
["timestamp","ask_amount","ask_price","bid_price","bid_amount"]
[1728861541702,0.112,62695.0,62694.0,0.079771]
[1728861542208,0.006,62695.0,62694.0,0.079771]
[1728861543501,0.004,62695.0,62694.0,0.1295463]
[1728861543804,0.004,62695.0,62694.0,0.081771]
[1728861544295,0.004,62695.0,62694.0,0.083771]
[1728861544505,0.114,62695.0,62694.0,0.083771]
[1728861544692,0.189771,62695.0,62694.0,0.083771]
[1728861544899,0.189771,62695.0,62694.0,0.004]
[1728861545502,0.079772,62694.0,62689.0,0.04776915]
[1728861545699,0.4708,62690.0,62684.0,0.05146915]
[1728861545893,0.189783,62685.0,62683.0,0.04776915]
[1728861546090,0.4708,62684.0,62683.0,0.04776915]
[1728861546425,0.550585,62684.0,62681.0,0.02803111]
[1728861546603,0.189787,62682.0,62681.0,0.02803111]
[1728861546996,0.079794,62677.0,62676.0,0.079795]
[1728861547308,0.079794,62677.0,62672.0,0.0325]
[1728861547309,0.079799,62673.0,62672.0,0.116]
[1728861547494,0.189799,62673.0,62672.0,0.1123]
[1728861547902,0.11,62673.0,62672.0,0.14099202]
[1728861548989,0.3608,62677.0,62672.0,0.17119202]
[1728861549395,0.001,62673.0,62672.0,0.25099202]
[1728861550009,0.3608,62677.0,62672.0,0.25099202]
[1728861550010,0.3618,62677.0,62672.0,0.17119202]
[1728861550194,0.3618,62677.0,62676.0,0.079795]
[1728861550792,0.3608,62677.0,62676.0,0.079795]
[1728861551505,0.3618,62677.0,62676.0,0.079795]
[1728861551899,0.001,62677.0,62676.0,0.079795]
[1728861552100,0.3618,62677.0,62676.0,0.079795]
[1728861552408,0.3628,62677.0,62676.0,0.080795]
[1728861556506,0.002,62677.0,62676.0,0.080795]
[1728861556707,0.002,62677.0,62676.0,0.190795]
[1728861559305,0.002,62677.0,62676.0,0.080795]
[1728861560902,0.3628,62677.0,62676.0,0.080795]
[1728861564208,0.002,62677.0,62676.0,0.080795]
[1728861582216,0.002,62677.0,62676.0,0.16054994]
[1728861582521,0.002,62677.0,62676.0,0.080795]
[1728861585426,0.002,62677.0,62676.0,0.16054994]
[1728861586222,0.002,62677.0,62676.0,0.26821772]
[1728861588425,0.002,62677.0,62676.0,0.16054994]
[1728861588814,0.002,62677.0,62676.0,0.080795]
[1728861593431,0.002,62677.0,62676.0,0.09376978]
[1728861602432,0.002,62677.0,62676.0,0.080795]
[1728861603421,0.002,62677.0,62676.0,0.09376981]
[1728861603934,0.002,62677.0,62676.0,0.09376967]
[1728861605425,0.002,62677.0,62676.0,0.20133892]
[1728861605621,0.002,62677.0,62676.0,0.23133892]
[1728861606434,0.002,62677.0,62676.0,0.32700783]
[1728861606625,0.002,62677.0,62676.0,0.23133892]
[1728861607429,0.0111,62683.0,62682.0,0.079787]
[1728861607737,0.3608,62687.0,62686.0,0.079782]
[1728861607934,0.3608,62687.0,62686.0,0.189782]
[1728861608135,0.00239372,62690.0,62689.0,0.079778]
[1728861608329,0.00239372,62690.0,62689.0,0.189778]
[1728861609138,0.00239372,62690.0,62689.0,0.25359691]
[1728861609435,0.00539372,62690.0,62689.0,0.25359691]
[1728861609636,0.00539372,62690.0,62689.0,0.189778]
[1728861610135,0.00539372,62690.0,62689.0,0.21849845]
[1728861610639,0.00639372,62690.0,62689.0,0.21849845]
[1728861614129,0.00639372,62690.0,62689.0,0.10849845]
[1728861614434,0.00639372,62690.0,62689.0,0.21849845]
[1728861616742,0.00239372,62690.0,62689.0,0.22049845]
[1728861617034,0.00239372,62690.0,62689.0,0.22149845]
[1728861617240,0.00239372,62690.0,62689.0,0.11149845]
[1728861617427,0.00239372,62690.0,62689.0,0.10949845]
[1728861618435,0.00439372,62690.0,62689.0,0.10849845]
[1728861637649,0.00439372,62690.0,62689.0,0.17231736]
[1728861639564,0.00439372,62690.0,62689.0,0.10849845]
[1728861640159,0.00439372,62690.0,62689.0,0.17235812]
[1728861640665,0.00439372,62690.0,62689.0,0.10849845]
[1728861649166,0.00439372,62690.0,62689.0,0.17236029]
[1728861653972,0.00439372,62690.0,62689.0,0.17235249]
[1728861655379,0.00439372,62690.0,62689.0,0.10849845]
[1728861657572,0.002,62690.0,62689.0,0.10849845]
[1728861658087,0.002,62690.0,62689.0,0.30846602]
[1728861658478,0.002,62690.0,62689.0,0.20125625]
[1728861658879,0.002,62690.0,62689.0,0.30844154]
[1728861659078,0.002,62690.0,62689.0,0.22865597]
[1728861659582,0.002,62690.0,62689.0,0.30843855]
[1728861660378,0.002,62690.0,62689.0,0.20125326]
[1728861660569,0.002,62690.0,62689.0,0.12147068]
[1728861660770,0.002,62690.0,62689.0,0.20125306]
[1728861661288,0.002,62690.0,62689.0,0.20125301]
[1728861661474,0.002,62690.0,62689.0,0.18828103]
[1728861661674,0.112,62690.0,62689.0,0.12147053]
[1728861661871,0.002,62690.0,62689.0,0.12147053]
[1728861664387,0.552577,62690.0,62689.0,0.02872045]
[1728861664583,0.079778,62689.0,62688.0,0.07978258]
[1728861664783,0.141878,62689.0,62688.0,0.10784104]
[1728861665980,0.141878,62689.0,62688.0,0.10884104]
[1728861666980,0.142878,62689.0,62688.0,0.10884104]
[1728861667477,0.252878,62689.0,62688.0,0.10884104]
[1728861668479,0.362878,62689.0,62688.0,0.08078258]
[1728861668781,0.079786,62683.0,62682.0,0.05155533]
[1728861668980,0.079786,62683.0,62679.0,0.06380711]
[1728861668981,0.07979,62680.0,62679.0,0.06380711]
[1728861669192,0.78979,62680.0,62679.0,0.06380711]
[1728861669380,1.26843,62680.0,62672.0,0.0835]
[1728861669577,0.079799,62673.0,62672.0,0.0798]
[1728861669785,0.189799,62673.0,62672.0,0.0798]
[1728861670789,0.190799,62673.0,62672.0,0.0808]
[1728861670979,0.190799,62673.0,62672.0,0.1094908]
[1728861671579,0.080799,62673.0,62672.0,0.1094908]
[1728861671794,0.081799,62673.0,62672.0,0.1104908]
[1728861672198,0.002,62673.0,62672.0,0.2204908]
[1728861676496,0.191799,62673.0,62672.0,0.0306908]
[1728861678192,0.191799,62673.0,62672.0,0.1104908]
[1728861678392,0.190799,62673.0,62672.0,0.1094908]
[1728861678588,0.190799,62673.0,62672.0,0.1104908]
[1728861679401,0.189799,62673.0,62672.0,0.1094908]
[1728861679695,0.3608,62676.0,62675.0,0.079796]
[1728861680497,0.4708,62676.0,62675.0,0.079796]
[1728861680885,0.4708,62676.0,62675.0,0.080796]
[1728861681494,0.550595,62676.0,62675.0,0.080796]
[1728861686101,0.550595,62676.0,62675.0,0.001]
[1728861686102,0.660595,62676.0,62675.0,0.001]
[1728861686494,0.660595,62676.0,62668.0,0.0037]
[1728861686495,0.079804,62669.0,62668.0,0.0037]
[1728861686701,0.079808,62666.0,62665.0,0.079809]
[1728861686895,0.189808,62666.0,62665.0,0.079809]
[1728861689599,0.189808,62666.0,62665.0,0.080809]
[1728861689600,0.190808,62666.0,62665.0,0.080809]
[1728861690607,0.080808,62666.0,62665.0,0.080809]
[1728861690903,0.191808,62666.0,62665.0,0.080809]
[1728861691500,0.112,62666.0,62665.0,0.080809]
[1728861699010,0.002,62666.0,62665.0,0.190809]
[1728861699409,0.002,62666.0,62665.0,0.253509]
[1728861699911,0.0111,62671.0,62670.0,0.079802]
[1728861700114,0.00239409,62679.0,62670.0,0.079802]
[1728861700115,0.0111,62674.0,62673.0,0.079799]
[1728861700410,0.3608,62676.0,62673.0,0.22]
[1728861700714,0.01349409,62679.0,62678.0,0.079792]
[1728861700918,0.01349409,62679.0,62678.0,0.550592]
[1728861700919,0.00239409,62679.0,62678.0,0.550592]
[1728861701211,0.0037,62687.0,62686.0,0.079782]
[1728861701417,0.3608,62688.0,62687.0,0.079781]
[1728861702603,0.3738,62688.0,62687.0,0.079781]
[1728861702806,0.3738,62688.0,62687.0,1.54822258]
[1728861702807,0.025,62688.0,62687.0,1.54822258]
[1728861704313,0.025,62688.0,62687.0,1.55321191]
[1728861704812,0.0037,62698.0,62687.0,1.55321191]
[1728861705015,0.18938496,62701.0,62700.0,0.079764]
[1728861706317,0.20338496,62701.0,62700.0,0.189764]
[1728861706525,0.014,62701.0,62700.0,0.550564]
[1728861707015,0.014,62701.0,62700.0,0.55555241]
[1728861707219,0.189744,62716.0,62702.0,0.079762]
[1728861707420,0.07974,62720.0,62712.0,0.079749]
[1728861707609,0.07974,62720.0,62717.0,0.079741]
[1728861708111,0.079743,62717.0,62712.0,0.249748]
[1728861708313,0.079743,62717.0,62712.0,0.079748]
[1728861708503,0.079743,62717.0,62711.0,0.3608]
[1728861708708,0.079743,62717.0,62715.0,0.079745]
[1728861708910,0.17,62718.0,62716.0,0.079744]
[1728861709116,0.005,62717.0,62716.0,0.079744]
[1728861709512,0.005,62717.0,62716.0,0.249744]
[1728861710319,0.00239221,62726.0,62725.0,0.079732]
[1728861710512,0.00239221,62726.0,62725.0,0.249732]
[1728861712321,0.00239221,62726.0,62725.0,0.250732]
[1728861712711,0.01639221,62726.0,62725.0,0.251732]
[1728861712913,0.664714,62738.0,62737.0,0.079717]
[1728861712914,0.303914,62738.0,62737.0,0.079717]
[1728861713208,0.3608,62746.0,62744.0,0.079707]
[1728861713417,0.3608,62746.0,62745.0,0.079707]
[1728861714925,0.3628,62746.0,62745.0,0.079707]
[1728861715421,0.3628,62746.0,62745.0,0.080707]
[1728861715624,0.3628,62746.0,62745.0,0.081707]
[1728861716007,0.5328,62746.0,62745.0,0.081707]
[1728861719428,0.172,62746.0,62745.0,0.081707]
[1728861720611,0.251706,62746.0,62745.0,0.002]
[1728861721422,0.079715,62739.0,62738.0,0.0037]
[1728861721612,0.079715,62739.0,62735.0,0.07972]
[1728861721613,0.5308,62739.0,62735.0,0.07972]
[1728861721818,0.079718,62737.0,62735.0,0.07972]
[1728861722216,0.0306,62738.0,62731.0,0.0037]
[1728861722415,0.079721,62734.0,62732.0,0.079723]
[1728861722721,0.17,62733.0,62732.0,0.079723]
[1728861723423,0.17,62733.0,62729.0,0.21746694]
[1728861723424,0.610522,62733.0,62729.0,0.21746694]
[1728861723626,0.3608,62732.0,62729.0,0.21746694]
[1728861723821,0.17,62733.0,62729.0,0.29719394]
[1728861724122,0.249723,62733.0,62730.0,0.079726]
[1728861725128,0.249723,62733.0,62730.0,0.080726]
[1728861725419,0.249723,62733.0,62730.0,0.001]
[1728861725626,0.249723,62733.0,62730.0,0.080726]
[1728861726021,0.252723,62733.0,62730.0,0.080726]
[1728861726323,0.613523,62733.0,62730.0,0.080726]
[1728861726526,0.079725,62732.0,62730.0,0.080726]
[1728861727434,0.079725,62732.0,62730.0,0.079726]
[1728861728325,0.079725,62731.0,62730.0,0.079726]
[1728861728519,0.5318,62733.0,62725.0,0.39255762]
[1728861728520,0.079728,62729.0,62725.0,0.11148862]
[1728861728725,0.079728,62729.0,62727.0,0.07973]
[1728861731021,0.080728,62729.0,62727.0,0.07973]
[1728861731425,0.080728,62729.0,62725.0,0.02805762]
[1728861731426,0.24973,62728.0,62725.0,0.02805762]
[1728861731627,0.17,62728.0,62724.0,0.079733]
[1728861731824,0.07973,62727.0,62724.0,0.079733]
[1728861732329,0.07973,62727.0,62721.0,0.03309739]
[1728861732529,0.07973,62727.0,62721.0,0.02939739]
[1728861732726,0.07973,62727.0,62725.0,0.079732]
[1728861734029,0.001,62728.0,62727.0,0.07973]
[1728861734421,0.079725,62731.0,62727.0,0.07973]
[1728861734621,0.079727,62730.0,62727.0,0.07973]
[1728861735028,0.003,62728.0,62727.0,0.07973]
[1728861735625,0.079727,62730.0,62727.0,0.07973]
[1728861735626,0.082727,62730.0,62727.0,0.07973]
[1728861736127,0.003,62730.0,62727.0,0.07973]
[1728861736321,0.17,62728.0,62720.0,0.39262499]
[1728861736637,0.17,62728.0,62724.0,0.079733]
[1728861737431,0.173,62728.0,62724.0,0.079733]
[1728861738032,0.079733,62725.0,62724.0,0.079733]
[1728861739232,0.080733,62725.0,62724.0,0.079733]
[1728861741438,0.001,62725.0,62724.0,0.079733]
[1728861747341,0.080732,62725.0,62724.0,0.079733]
[1728861747532,0.080732,62725.0,62722.0,0.06376551]
[1728861747533,0.079735,62724.0,62722.0,0.14350151]
[1728861747939,0.111135,62724.0,62722.0,0.079736]
[1728861748443,0.111135,62724.0,62722.0,0.14350151]
[1728861748940,0.111135,62724.0,62722.0,0.14550151]
[1728861749341,0.079735,62723.0,62722.0,0.003]
[1728861749545,0.079735,62723.0,62722.0,0.06676551]
[1728861750339,0.079735,62723.0,62722.0,0.003]
[1728861750648,0.079735,62723.0,62722.0,0.082736]
[1728861751231,0.079735,62723.0,62722.0,0.14650151]
[1728861753443,0.079735,62723.0,62722.0,0.082736]
[1728861762545,0.079735,62723.0,62722.0,0.003]
[1728861763334,0.189735,62723.0,62722.0,0.003]
[1728861763539,0.189735,62723.0,62722.0,0.082736]
[1728861768143,0.189735,62723.0,62722.0,0.003]
[1728861775461,0.550535,62723.0,62722.0,0.003]
[1728861777657,0.189735,62723.0,62722.0,0.003]
[1728861778059,0.550535,62723.0,62722.0,0.003]
[1728861778251,0.189735,62723.0,62722.0,0.003]
[1728861778450,0.550535,62723.0,62722.0,0.003]
[1728861778766,0.189735,62723.0,62722.0,0.003]
[1728861779066,0.550535,62723.0,62722.0,0.003]
[1728861780256,0.189735,62723.0,62722.0,0.003]
[1728861780563,0.550535,62723.0,62722.0,0.003]
[1728861781363,0.550535,62723.0,62722.0,0.082736]
[1728861782462,0.440535,62723.0,62722.0,0.082736]
[1728861782661,0.3608,62723.0,62722.0,0.082736]
[1728861782864,0.4708,62723.0,62722.0,0.082736]
[1728861783256,0.11,62723.0,62722.0,0.082736]
[1728861788866,0.4708,62723.0,62722.0,0.082736]
[1728861789870,0.550535,62723.0,62722.0,0.082736]
[1728861790861,0.550535,62723.0,62722.0,0.003]
[1728861792966,0.4708,62723.0,62722.0,0.082736]
[1728861793362,0.550535,62723.0,62722.0,0.082736]
[1728861800676,0.189735,62723.0,62722.0,0.082736]
[1728861808390,0.550535,62723.0,62722.0,0.082736]
[1728861809288,0.189735,62723.0,62722.0,0.082736]
[1728861809494,0.550535,62723.0,62722.0,0.082736]
[1728861812297,0.550535,62723.0,62719.0,0.07684843]
[1728861812298,0.079739,62720.0,62719.0,0.02899085]
[1728861812598,0.079745,62715.0,62714.0,0.0037]
[1728861812796,0.079745,62715.0,62713.0,0.10847508]
[1728861812797,0.079746,62714.0,62713.0,0.10847508]
[1728861814489,0.079746,62714.0,62713.0,0.11847508]
[1728861815192,0.079746,62714.0,62713.0,0.12947508]
[1728861816700,0.440546,62714.0,62713.0,0.12947508]
[1728861820703,0.3608,62714.0,62713.0,0.12947508]
[1728861820890,0.0623,62719.0,62713.0,0.12947508]
[1728861820891,0.47202511,62728.0,62713.0,0.23947508]
[1728861821199,0.47202511,62728.0,62724.0,0.079734]
[1728861821200,0.0037,62725.0,62724.0,0.079734]
[1728861821499,0.3608,62728.0,62727.0,0.07973]
[1728861823601,0.3618,62728.0,62727.0,0.07973]
[1728861823797,0.3658,62728.0,62727.0,0.07973]
[1728861826101,0.005,62728.0,62727.0,0.32840464]
[1728861826299,0.0037,62735.0,62734.0,0.079721]
[1728861826501,0.47769149,62742.0,62740.0,0.079713]
[1728861826697,0.079713,62741.0,62740.0,0.079713]
[1728861828302,0.080713,62741.0,62740.0,0.080713]
[1728861828606,0.084713,62741.0,62740.0,0.081713]
[1728861829607,0.005,62741.0,62740.0,0.081713]
[1728861831915,0.005,62741.0,62740.0,0.10988329]
[1728861832295,0.005,62741.0,62740.0,0.21988329]
[1728861833002,0.005,62741.0,62740.0,0.69804329]
[1728861833207,0.005,62741.0,62740.0,1.29804329]
[1728861834109,0.005,62741.0,62740.0,1.40804329]
[1728861834306,0.00239149,62742.0,62741.0,0.079712]
[1728861834606,0.0037,62748.0,62747.0,0.079705]
[1728861834813,0.11,62754.0,62749.0,0.079702]
[1728861834814,0.3608,62750.0,62749.0,0.079702]
[1728861836411,0.0037,62755.0,62754.0,0.079696]
[1728861836610,0.11,62758.0,62757.0,0.079692]
[1728861838011,0.11,62758.0,62757.0,0.080692]
[1728861838909,0.11,62758.0,62757.0,0.10999916]
[1728861839309,0.189691,62758.0,62757.0,0.03030716]
[1728861839711,0.189691,62758.0,62757.0,0.03130716]
[1728861841411,0.299691,62758.0,62757.0,0.03130716]
[1728861842418,0.189691,62758.0,62757.0,0.03130716]
[1728861852417,0.550491,62758.0,62757.0,0.03130716]
[1728861852619,0.189691,62758.0,62757.0,0.03130716]
[1728861852915,0.550491,62758.0,62757.0,0.03130716]
[1728861853120,0.189691,62758.0,62757.0,0.03130716]
[1728861853517,0.550491,62758.0,62757.0,0.03130716]
[1728861855122,0.550491,62758.0,62757.0,0.11099916]
[1728861858219,0.079699,62752.0,62751.0,0.079699]
[1728861858421,0.079703,62748.0,62747.0,0.083403]
[1728861858618,0.189703,62748.0,62747.0,0.079703]
[1728861860230,0.079707,62745.0,62744.0,0.10816607]
[1728861860433,0.189707,62745.0,62744.0,0.10816607]
[1728861860732,0.299707,62745.0,62744.0,0.02845807]
[1728861860929,0.189707,62745.0,62744.0,0.079708]
[1728861861431,0.189707,62745.0,62744.0,0.080708]
[1728861862230,0.190707,62745.0,62744.0,0.081708]
[1728861862431,0.551507,62745.0,62744.0,0.081708]
[1728861864128,0.661507,62745.0,62744.0,0.002]
[1728861867129,0.300707,62745.0,62744.0,0.002]
[1728861867334,0.661507,62745.0,62744.0,0.002]
[1728861870020,0.551507,62745.0,62744.0,0.002]
[1728861870240,0.551507,62745.0,62744.0,0.081708]
[1728861870818,0.441507,62745.0,62744.0,0.081708]
[1728861871025,0.551507,62745.0,62744.0,0.081708]
[1728861880037,0.190707,62745.0,62744.0,0.081708]
[1728861883430,0.111,62745.0,62744.0,0.081708]
[1728861883629,0.190707,62745.0,62744.0,0.081708]
[1728861886745,0.079715,62739.0,62738.0,0.02911555]
[1728861886939,0.4708,62739.0,62731.0,0.05155758]
[1728861887140,0.11,62732.0,62731.0,0.079725]
[1728861887336,0.189724,62732.0,62731.0,0.079725]
[1728861890650,0.191724,62732.0,62731.0,0.079725]
[1728861891251,0.189724,62732.0,62731.0,0.079725]
[1728861891451,0.191724,62732.0,62731.0,0.079725]
[1728861902160,0.112,62732.0,62731.0,0.079725]
[1728861905955,0.191724,62732.0,62731.0,0.079725]
[1728861906464,0.081724,62732.0,62731.0,0.079725]
[1728861906660,0.191724,62732.0,62731.0,0.079725]
[1728861909558,0.079727,62729.0,62728.0,0.02846372]
[1728861909763,0.079727,62729.0,62724.0,0.04785758]
[1728861909764,0.11,62729.0,62724.0,0.04785758]
[1728861909962,0.11,62731.0,62722.0,0.04785758]
[1728861909963,0.11,62725.0,62722.0,0.04785758]
[1728861910166,0.079735,62723.0,62722.0,0.10891402]
[1728861911157,0.079732,62725.0,62724.0,0.079734]
[1728861911363,0.079732,62725.0,62718.0,0.04785758]
[1728861911364,0.4708,62727.0,62726.0,0.079731]
[1728861912061,0.11,62727.0,62726.0,0.079731]
[1728861912460,0.18973,62727.0,62726.0,0.079731]
[1728861913063,0.19073,62727.0,62726.0,0.079731]
[1728861915371,0.001,62727.0,62726.0,0.079731]
[1728861917676,0.11,62728.0,62727.0,0.07973]
[1728861918666,0.111,62728.0,62727.0,0.07973]
[1728861920474,0.11,62728.0,62727.0,0.07973]
[1728861920685,0.111,62728.0,62727.0,0.07973]
[1728861924579,0.079732,62725.0,62724.0,0.02889097]
[1728861924773,0.079732,62725.0,62719.0,0.06744806]
[1728861924774,0.079735,62723.0,62722.0,0.04785758]
[1728861924975,0.079735,62723.0,62721.0,0.079737]
[1728861924976,0.032,62724.0,62721.0,0.079737]
[1728861925278,0.189736,62722.0,62721.0,0.079737]
[1728861926278,0.189736,62722.0,62719.0,0.07666751]
[1728861926279,0.079739,62720.0,62719.0,0.02880993]
[1728861926484,0.079741,62718.0,62717.0,0.04785758]
[1728861926683,0.079741,62718.0,62716.0,0.12760058]
[1728861926888,0.079741,62718.0,62717.0,0.04785758]
[1728861927086,0.11,62719.0,62716.0,0.12760058]
[1728861927285,0.079743,62717.0,62716.0,0.079743]
[1728861927586,0.079743,62717.0,62716.0,0.12754104]
[1728861928090,0.079743,62717.0,62716.0,0.16489379]
[1728861928686,0.079743,62717.0,62716.0,0.17389379]
[1728861930992,0.079743,62717.0,62716.0,0.12609575]
[1728861937296,0.079743,62717.0,62716.0,0.04635275]
[1728861938192,0.079743,62717.0,62716.0,0.017]
[1728861938892,0.440543,62717.0,62716.0,0.017]
[1728861940498,0.440543,62717.0,62712.0,0.0037]
[1728861940499,0.079748,62713.0,62709.0,0.0074]
[1728861940687,0.079753,62709.0,62704.0,0.079759]
[1728861940891,0.29976,62705.0,62704.0,0.079759]
[1728861941403,0.29976,62705.0,62704.0,0.1084138]
[1728861941902,0.29976,62705.0,62704.0,0.0286548]
[1728861942112,0.079762,62702.0,62701.0,0.079763]
[1728861942302,0.550562,62702.0,62701.0,0.079763]
[1728861943503,0.550562,62702.0,62697.0,0.10809293]
[1728861943504,0.079767,62698.0,62697.0,0.10809293]
[1728861943695,0.189767,62698.0,62697.0,0.079767]
[1728861944091,0.180767,62698.0,62697.0,0.079767]
[1728861945093,0.180767,62698.0,62697.0,0.092767]
[1728861945094,0.181767,62698.0,62697.0,0.092767]
[1728861945593,0.181767,62698.0,62697.0,0.101767]
[1728861945594,0.182767,62698.0,62697.0,0.101767]
[1728861947297,0.112,62698.0,62697.0,0.101767]
[1728861949496,0.191767,62698.0,62697.0,0.101767]
[1728861952405,0.301767,62698.0,62697.0,0.022]
[1728861952602,0.191767,62698.0,62697.0,0.022]
[1728861952900,0.191767,62698.0,62693.0,0.02925681]
[1728861952901,0.301767,62698.0,62693.0,0.02925681]
[1728861953103,0.079774,62693.0,62687.0,0.079781]
[1728861953305,0.11,62688.0,62687.0,0.079781]
[1728861954602,0.111,62688.0,62687.0,0.079781]
[1728861955105,0.111,62688.0,62687.0,0.1088833]
[1728861955910,0.001,62688.0,62687.0,0.1088833]
[1728861956801,0.11,62690.0,62687.0,0.1088833]
[1728861957107,0.003,62688.0,62687.0,0.1088833]
[1728861957608,0.11,62690.0,62687.0,0.1088833]
[1728861957808,0.001,62688.0,62687.0,0.1088833]
[1728861958307,0.004,62688.0,62687.0,0.1088833]
[1728861958509,0.006,62688.0,62687.0,0.1088833]
[1728861958806,0.003,62688.0,62687.0,0.1088833]
[1728861959501,0.004,62688.0,62687.0,0.1088833]
[1728861959904,0.003,62688.0,62687.0,0.1088833]
[1728861960211,0.004,62688.0,62687.0,0.1088833]
[1728861960800,0.006,62688.0,62687.0,0.1088833]
[1728861961607,0.002,62688.0,62687.0,0.1088833]
[1728861962109,0.001,62688.0,62687.0,0.1088833]
[1728861962309,0.004,62688.0,62687.0,0.2188833]
[1728861962908,0.004,62688.0,62687.0,0.1088833]
[1728861962909,0.001,62688.0,62687.0,0.1088833]
[1728861963208,0.113,62688.0,62687.0,0.1088833]
[1728861963512,0.113,62688.0,62687.0,0.079781]
[1728861963910,0.11,62688.0,62687.0,0.079781]
[1728861964604,0.11,62688.0,62687.0,0.441581]
[1728861964803,0.111,62688.0,62687.0,0.441581]
[1728861965208,0.111,62688.0,62687.0,0.440581]
[1728861965408,0.0317,62694.0,62687.0,1.629141]
[1728861965611,0.0317,62694.0,62693.0,0.440573]
[1728861966608,0.0317,62694.0,62693.0,0.079773]
[1728861967206,0.0387,62694.0,62693.0,0.079773]
[1728861967713,0.0447,62694.0,62693.0,0.080773]
[1728861970015,0.0447,62694.0,62693.0,0.441573]
[1728861971808,0.0447,62694.0,62693.0,0.080773]
[1728861972305,0.0447,62694.0,62693.0,0.10918204]
[1728861973117,0.0447,62694.0,62693.0,0.15698008]
[1728861973617,0.0447,62694.0,62693.0,0.10918204]
[1728861973815,0.0447,62694.0,62693.0,0.15698008]
[1728861977421,0.0447,62694.0,62693.0,0.15701762]
[1728861977620,0.0447,62694.0,62693.0,0.10918204]
[1728861979528,0.013,62694.0,62693.0,0.10918204]
[1728861981319,0.013,62694.0,62693.0,0.1729301]
[1728861982212,0.0037,62701.0,62693.0,0.65575884]
[1728861982421,0.00609267,62707.0,62703.0,0.07976]
[1728861982621,0.00239267,62707.0,62703.0,0.11]
[1728861982927,0.00239267,62707.0,62706.0,0.53462265]
[1728861983116,0.00239267,62707.0,62706.0,0.4708]
[1728861983316,0.00239267,62707.0,62706.0,0.550557]
[1728861983527,0.00239267,62707.0,62706.0,0.61431816]
[1728861983918,0.00239267,62707.0,62706.0,0.55554486]
[1728861984120,0.00239267,62707.0,62706.0,0.61926356]
[1728861984416,0.00239267,62707.0,62706.0,0.550557]
[1728861984616,0.00939267,62707.0,62706.0,0.551557]
[1728861984923,0.007,62707.0,62706.0,0.551557]
[1728861985121,0.1137,62714.0,62713.0,0.079748]
[1728861985122,0.0037,62714.0,62713.0,0.079748]
[1728861985320,0.0043,62728.0,62717.0,0.079743]
[1728861985321,0.0037,62721.0,62717.0,0.079743]
[1728861985526,0.0037,62725.0,62717.0,0.299743]
[1728861985822,0.11,62725.0,62724.0,0.079734]
[1728861986722,0.11,62727.0,62726.0,0.079731]
[1728861989122,0.11,62727.0,62726.0,0.10911704]
[1728861989521,0.127,62727.0,62726.0,0.11011704]
[1728861989722,0.127,62727.0,62726.0,0.22011704]
[1728861989723,0.017,62727.0,62726.0,0.22011704]
[1728861990227,0.017,62727.0,62726.0,0.11011704]
[1728861990916,0.127,62727.0,62726.0,0.11011704]
[1728861997636,0.20673,62727.0,62726.0,0.11011704]
[1728862002433,0.127,62727.0,62726.0,0.11011704]
[1728862014145,0.20673,62727.0,62726.0,0.11011704]
[1728862017853,0.017,62727.0,62726.0,0.11011704]
[1728862018059,0.017,62727.0,62726.0,0.22011704]
[1728862019352,0.017,62727.0,62726.0,0.11011704]
[1728862024765,0.017,62727.0,62726.0,0.15786415]
[1728862025761,0.017,62727.0,62726.0,0.11011704]
[1728862025961,0.017,62727.0,62726.0,0.15786415]
[1728862026163,0.4878,62727.0,62726.0,0.15786415]
[1728862026369,0.56753,62727.0,62726.0,0.11011704]
[1728862031174,0.3778,62727.0,62726.0,0.11011704]
[1728862031769,0.3778,62727.0,62726.0,0.15786415]
[1728862031963,0.017,62727.0,62726.0,0.11011704]
[1728862044475,0.0037,62735.0,62734.0,0.079721]
[1728862044675,0.00239138,62740.0,62734.0,0.440521]
[1728862044977,0.00239138,62740.0,62739.0,0.079715]
[1728862045888,0.00239138,62740.0,62739.0,1.267875]
[1728862046086,0.00239138,62740.0,62739.0,1.157875]
[1728862046471,0.0037,62747.0,62746.0,0.079706]
[1728862046678,0.550496,62754.0,62746.0,0.11]
[1728862046679,0.079698,62753.0,62746.0,0.11]
[1728862046877,0.079698,62753.0,62750.0,0.0797]
[1728862047183,0.079699,62752.0,62751.0,0.079699]
[1728862047882,0.0797,62751.0,62749.0,0.11]
[1728862048084,0.079701,62750.0,62747.0,0.189704]
[1728862048473,0.079701,62750.0,62747.0,0.11]
[1728862048686,0.079701,62750.0,62748.0,0.079703]
[1728862049786,0.079701,62750.0,62748.0,0.080703]
[1728862050184,0.079701,62750.0,62749.0,0.079702]
[1728862051387,0.093701,62750.0,62749.0,0.079702]
[1728862051787,0.079702,62749.0,62748.0,0.001]
[1728862052089,0.11,62749.0,62734.0,0.00124]
[1728862052289,0.079714,62740.0,62739.0,0.079714]
[1728862052492,0.189714,62740.0,62739.0,0.079714]
[1728862052989,0.189714,62740.0,62732.0,0.079723]
[1728862052990,0.079725,62733.0,62732.0,0.079723]
[1728862053295,0.189725,62733.0,62732.0,0.079723]
[1728862055177,0.190725,62733.0,62732.0,0.080723]
[1728862055382,0.551525,62733.0,62732.0,0.080723]
[1728862056594,0.551525,62733.0,62732.0,0.001]
[1728862056893,1.67004,62733.0,62726.0,0.079731]
[1728862057093,0.55053,62727.0,62726.0,0.079731]
[1728862058489,0.4708,62727.0,62726.0,0.079731]
[1728862058698,0.4728,62727.0,62726.0,0.079731]
[1728862059790,0.4768,62727.0,62726.0,0.079731]